[Event "LASK Schackstudion IM Tournament"]
[Site "Lund, Sweden"]
[Date "2022.08.15"]
[Round "1.2"]
[White "Kucuksari, Kaan"]
[Black "Nord, Alexander"]
[Result "1-0"]
[TimeControl "90 minutes + 30 sec increment starting from move 1."]
[WhiteTitle "FM"]
[BlackTitle "CM"]
[WhiteFideId "6380166"]
[BlackFideId "1738135"]
[WhiteElo "2398"]
[BlackElo "2227"]

1. d4 {[%clk 01:30:58]} {[%emt 03:19:12]} Nf6 {[%clk 01:30:55]} {[%emt
00:00:06]} 2. c4 {[%clk 01:31:22]} {[%emt 00:00:06]} c5 {[%clk 01:30:29]}
{[%emt 00:00:56]} 3. d5 {[%clk 01:31:47]} {[%emt 00:00:06]} a6 {[%clk
01:30:53]} {[%emt 00:00:06]} 4. a3 {[%clk 01:31:53]} {[%emt 00:00:24]} b5
{[%clk 01:30:24]} {[%emt 00:00:58]} 5. Qc2 {[%clk 01:32:18]} {[%emt 00:00:05]}
d6 {[%clk 01:29:03]} {[%emt 00:01:50]} 6. e4 {[%clk 01:31:35]} {[%emt
00:01:14]} g6 {[%clk 01:23:46]} {[%emt 00:05:48]} 7. cxb5 {[%clk 01:22:22]}
{[%emt 00:09:43]} Bg7 {[%clk 01:24:00]} {[%emt 00:00:15]} 8. Nc3 {[%clk
01:19:06]} {[%emt 00:03:47]} O-O {[%clk 01:24:14]} {[%emt 00:00:16]} 9. Nf3
{[%clk 01:18:47]} {[%emt 00:00:49]} axb5 {[%clk 01:02:39]} {[%emt 00:22:05]} 10.
Bxb5 {[%clk 01:18:49]} {[%emt 00:00:29]} Ba6 {[%clk 01:02:32]} {[%emt
00:00:36]} 11. O-O {[%clk 01:14:24]} {[%emt 00:04:55]} Nbd7 {[%clk 00:53:23]}
{[%emt 00:09:39]} 12. h3 {[%clk 01:06:55]} {[%emt 00:07:58]} Ne8 {[%clk
00:48:17]} {[%emt 00:05:36]} 13. Bxa6 {[%clk 01:02:51]} {[%emt 00:04:34]} Rxa6
{[%clk 00:48:41]} {[%emt 00:00:06]} 14. Nb5 {[%emt 00:04:15]} Nc7 {[%clk
00:43:49]} {[%emt 00:05:19]} 15. Nxc7 {[%clk 00:59:25]} {[%emt 00:00:13]} Qxc7
{[%clk 00:44:17]} {[%emt 00:00:01]} 16. Bd2 {[%clk 00:59:04]} {[%emt 00:00:51]}
Rb8 {[%clk 00:42:01]} {[%emt 00:02:47]} 17. Ra2 {[%clk 00:48:50]} {[%emt
00:10:43]} Qa7 {[%clk 00:40:05]} {[%emt 00:02:26]} 18. a4 {[%clk 00:46:51]}
{[%emt 00:02:30]} Rab6 {[%clk 00:35:04]} {[%emt 00:05:31]} 19. Bc3 {[%clk
00:45:41]} {[%emt 00:01:39]} Qa6 {[%clk 00:28:13]} {[%emt 00:07:21]} 20. a5
{[%clk 00:41:17]} {[%emt 00:04:55]} R6b7 {[%clk 00:28:19]} {[%emt 00:00:23]} 21.
Rfa1 {[%clk 00:35:31]} {[%emt 00:06:16]} Nf6 {[%clk 00:26:35]} {[%emt
00:02:14]} 22. Nd2 {[%clk 00:32:26]} {[%emt 00:03:35]} Ne8 {[%clk 00:26:37]}
{[%emt 00:00:28]} 23. Bxg7 {[%clk 00:23:29]} {[%emt 00:09:28]} Kxg7 {[%clk
00:27:02]} {[%emt 00:00:04]} 24. Nc4 {[%clk 00:21:30]} {[%emt 00:02:30]} Nc7
{[%clk 00:26:52]} {[%emt 00:00:39]} 25. Nb6 {[%clk 00:17:14]} {[%emt 00:04:46]}
Qb5 {[%clk 00:25:16]} {[%emt 00:02:06]} 26. Qc3+ {[%clk 00:11:42]} {[%emt
00:06:02]} Kg8 {[%clk 00:25:32]} {[%emt 00:00:13]} 27. b3 {[%clk 00:08:35]}
{[%emt 00:03:38]} Ra7 {[%clk 00:21:50]} {[%emt 00:04:11]} 28. Ra4 {[%clk
00:07:38]} {[%emt 00:01:27]} Na6 {[%clk 00:21:23]} {[%emt 00:00:56]} 29. e5
{[%clk 00:07:12]} {[%emt 00:00:57]} dxe5 {[%clk 00:17:34]} {[%emt 00:04:19]} 30.
Qxe5 {[%clk 00:07:40]} {[%emt 00:00:02]} Qxb3 {[%clk 00:16:49]} {[%emt
00:01:15]} 31. h4 {[%clk 00:06:36]} {[%emt 00:01:35]} h5 {[%clk 00:12:48]}
{[%emt 00:04:30]} 32. g4 {[%clk 00:05:56]} {[%emt 00:01:11]} Qc2 {[%clk
00:05:50]} {[%emt 00:07:28]} 33. Rf4 {[%clk 00:04:25]} {[%emt 00:02:00]} Rd8
{[%clk 00:05:56]} {[%emt 00:00:24]} 34. gxh5 {[%clk 00:03:50]} {[%emt
00:01:05]} gxh5 {[%clk 00:06:17]} {[%emt 00:00:10]} 35. Kh1 {[%clk 00:01:56]}
{[%emt 00:02:23]} Rd6 {[%clk 00:03:58]} {[%emt 00:02:49]} 36. Nc8 {[%clk
00:02:09]} {[%emt 00:00:17]} 1-0

[Event "LASK Schackstudion IM Tournament"]
[Site "Lund, Sweden"]
[Date "2022.08.15"]
[Round "1.3"]
[White "Jogstad, Martin"]
[Black "Jacobsen, Mikkel Manosri"]
[Result "1-0"]
[TimeControl "90 minutes + 30 sec increment starting from move 1."]
[WhiteTitle "FM"]
[BlackTitle "FM"]
[WhiteFideId "1715364"]
[BlackFideId "1444514"]
[WhiteElo "2354"]
[BlackElo "2320"]

1. d4 {[%clk 01:30:46]} {[%emt 00:00:13]} d5 {[%clk 01:30:54]} {[%emt
00:00:06]} 2. c4 {[%clk 01:31:05]} {[%emt 00:00:12]} e6 {[%clk 01:31:20]}
{[%emt 00:00:04]} 3. Nc3 {[%clk 01:31:21]} {[%emt 00:00:12]} Nf6 {[%clk
01:31:21]} {[%emt 00:00:31]} 4. cxd5 {[%clk 01:31:43]} {[%emt 00:00:08]} exd5
{[%clk 01:31:45]} {[%emt 00:00:05]} 5. Bg5 {[%clk 01:32:07]} {[%emt 00:00:06]}
Be7 {[%clk 01:31:52]} {[%emt 00:00:23]} 6. e3 {[%clk 01:32:07]} {[%emt
00:00:30]} O-O {[%clk 01:32:09]} {[%emt 00:00:14]} 7. Bd3 {[%clk 01:31:38]}
{[%emt 00:00:59]} Nbd7 {[%clk 01:31:25]} {[%emt 00:01:13]} 8. Nge2 {[%clk
01:26:00]} {[%emt 00:06:08]} a6 {[%clk 01:31:43]} {[%emt 00:00:12]} 9. O-O
{[%clk 01:24:55]} {[%emt 00:01:35]} Re8 {[%clk 01:31:25]} {[%emt 00:00:48]} 10.
Qc2 {[%clk 01:23:49]} {[%emt 00:01:36]} h6 {[%clk 01:31:28]} {[%emt 00:00:27]}
11. Bh4 {[%clk 01:20:05]} {[%emt 00:04:13]} b5 {[%clk 01:30:25]} {[%emt
00:01:34]} 12. f3 {[%clk 01:02:34]} {[%emt 00:18:01]} Bb7 {[%clk 01:19:37]}
{[%emt 00:11:17]} 13. Bf2 {[%clk 01:00:59]} {[%emt 00:02:05]} c5 {[%clk
01:17:44]} {[%emt 00:02:24]} 14. dxc5 {[%clk 01:00:13]} {[%emt 00:01:15]} Bxc5
{[%clk 01:17:59]} {[%emt 00:00:14]} 15. Nd4 {[%clk 00:58:42]} {[%emt 00:02:01]}
Ne5 {[%clk 01:15:32]} {[%emt 00:02:57]} 16. Rad1 {[%clk 00:51:24]} {[%emt
00:07:49]} Rc8 {[%clk 01:14:00]} {[%emt 00:02:02]} 17. Qb1 {[%clk 00:41:17]}
{[%emt 00:10:37]} Qb6 {[%clk 01:07:18]} {[%emt 00:07:11]} 18. Rfe1 {[%clk
00:38:18]} {[%emt 00:03:29]} Nc4 {[%clk 01:00:37]} {[%emt 00:07:12]} 19. Bf1
{[%clk 00:35:06]} {[%emt 00:03:42]} Bb4 {[%clk 00:56:35]} {[%emt 00:04:32]} 20.
Rc1 {[%clk 00:32:10]} {[%emt 00:03:27]} Qa5 {[%clk 00:51:21]} {[%emt 00:05:43]}
21. Re2 {[%clk 00:19:59]} {[%emt 00:12:41]} Re7 {[%clk 00:21:58]} {[%emt
00:29:53]} 22. Nb3 {[%clk 00:05:30]} {[%emt 00:15:00]} Qc7 {[%clk 00:20:48]}
{[%emt 00:01:40]} 23. Nd1 {[%clk 00:02:45]} {[%emt 00:03:16]} Bd6 {[%clk
00:15:06]} {[%emt 00:06:12]} 24. g3 {[%clk 00:03:06]} {[%emt 00:00:09]} Qd7
{[%clk 00:15:23]} {[%emt 00:00:12]} 25. Nd4 {[%clk 00:02:46]} {[%emt 00:00:49]}
g6 {[%clk 00:15:42]} {[%emt 00:00:11]} 26. b3 {[%clk 00:01:26]} {[%emt
00:01:50]} Na3 {[%clk 00:15:28]} {[%emt 00:00:44]} 27. Rxc8+ {[%clk 00:01:32]}
{[%emt 00:00:25]} Qxc8 {[%clk 00:15:44]} {[%emt 00:00:14]} 28. Qb2 {[%clk
00:01:53]} {[%emt 00:00:09]} b4 {[%clk 00:15:52]} {[%emt 00:00:22]} 29. Be1
{[%clk 00:00:37]} {[%emt 00:01:45]} a5 {[%clk 00:15:33]} {[%emt 00:00:49]} 30.
Rd2 {[%clk 00:00:39]} {[%emt 00:00:29]} Ba6 {[%clk 00:14:53]} {[%emt 00:01:10]}
31. Bxa6 {[%clk 00:00:53]} {[%emt 00:00:15]} Qxa6 {[%clk 00:15:17]} {[%emt
00:00:05]} 32. Nf5 {[%clk 00:01:01]} {[%emt 00:00:22]} Re5 {[%clk 00:13:54]}
{[%emt 00:01:52]} 33. Nxh6+ {[%clk 00:01:04]} {[%emt 00:00:27]} Kg7 {[%clk
00:14:14]} {[%emt 00:00:11]} 34. f4 {[%clk 00:01:10]} {[%emt 00:00:25]} Rh5
{[%clk 00:13:15]} {[%emt 00:01:28]} 35. Ng4 {[%clk 00:01:34]} {[%emt 00:00:06]}
Be7 {[%clk 00:13:37]} {[%emt 00:00:08]} 36. Ndf2 {[%clk 00:00:49]} {[%emt
00:01:15]} Qe6 {[%clk 00:12:59]} {[%emt 00:01:07]} 37. Ne5 {[%clk 00:00:41]}
{[%emt 00:00:38]} Bc5 {[%clk 00:10:02]} {[%emt 00:03:27]} 38. Re2 {[%clk
00:00:48]} {[%emt 00:00:23]} Kg8 {[%clk 00:10:12]} {[%emt 00:00:20]} 39. Qc1
{[%clk 00:00:55]} {[%emt 00:00:23]} Bd6 {[%clk 00:10:38]} {[%emt 00:00:05]} 40.
Nf3 {[%clk 00:00:49]} {[%emt 00:00:36]} Ne4 {[%clk 00:08:07]} {[%emt 00:03:01]}
41. Nd4 {[%clk 00:00:51]} {[%emt 00:00:28]} Qd7 {[%clk 00:08:22]} {[%emt
00:00:15]} 42. Nxe4 {[%clk 00:01:03]} {[%emt 00:00:18]} dxe4 {[%clk 00:08:50]}
{[%emt 00:00:02]} 43. Rd2 {[%clk 00:00:36]} {[%emt 00:00:57]} Rc5 {[%clk
00:08:52]} {[%emt 00:00:28]} 44. Qd1 {[%clk 00:00:58]} {[%emt 00:00:08]} Qc8
{[%clk 00:08:28]} {[%emt 00:00:54]} 45. Kg2 {[%clk 00:00:47]} {[%emt 00:00:41]}
Be7 {[%clk 00:06:32]} {[%emt 00:02:25]} 46. Bf2 {[%clk 00:00:55]} {[%emt
00:00:22]} Bf6 {[%clk 00:05:56]} {[%emt 00:01:07]} 47. g4 {[%clk 00:01:08]}
{[%emt 00:00:16]} Rc1 {[%clk 00:05:57]} {[%emt 00:00:29]} 48. Qe2 {[%clk
00:01:34]} {[%emt 00:00:04]} Ra1 {[%clk 00:05:57]} {[%emt 00:00:30]} 49. g5
{[%clk 00:01:27]} {[%emt 00:00:37]} Bxd4 {[%clk 00:05:07]} {[%emt 00:01:21]} 50.
Rxd4 {[%clk 00:01:22]} {[%emt 00:00:35]} Qc1 {[%clk 00:05:32]} {[%emt
00:00:05]} 51. Kg3 {[%clk 00:00:45]} {[%emt 00:01:07]} Qh1 {[%clk 00:04:59]}
{[%emt 00:01:03]} 52. f5 {[%clk 00:00:44]} {[%emt 00:00:31]} Nc2 {[%clk
00:04:08]} {[%emt 00:01:21]} 53. Rd8+ {[%clk 00:00:49]} {[%emt 00:00:25]} Kh7
{[%clk 00:04:37]} 54. fxg6+ {[%clk 00:01:03]} {[%emt 00:00:17]} fxg6 {[%clk
00:02:59]} {[%emt 00:02:07]} 55. Rd7+ {[%clk 00:01:00]} {[%emt 00:00:33]} Kh8
{[%clk 00:03:28]} 56. Qg4 {[%clk 00:00:38]} {[%emt 00:00:53]} Qf3+ {[%clk
00:01:15]} {[%emt 00:02:43]} 57. Qxf3 {[%clk 00:01:07]} {[%emt 00:00:01]} exf3
{[%clk 00:01:38]} {[%emt 00:00:07]} 58. e4 {[%clk 00:01:22]} {[%emt 00:00:14]}
Rxa2 {[%emt 00:00:36]} 59. e5 {[%clk 00:01:39]} {[%emt 00:00:13]} Ra3 {[%clk
00:01:22]} {[%emt 00:00:40]} 60. e6 {[%clk 00:01:30]} {[%emt 00:00:39]} Kg8
{[%clk 00:01:47]} {[%emt 00:00:05]} 61. Rd8+ {[%clk 00:01:32]} {[%emt
00:00:27]} Kg7 {[%clk 00:02:12]} {[%emt 00:00:06]} 62. e7 {[%clk 00:01:54]}
{[%emt 00:00:07]} 1-0

[Event "LASK Schackstudion IM Tournament"]
[Site "Lund, Sweden"]
[Date "2022.08.15"]
[Round "1.4"]
[White "Jepson, Christian"]
[Black "Magnusson, Jorgen"]
[Result "1-0"]
[TimeControl "90 minutes + 30 sec increment starting from move 1."]
[WhiteTitle "IM"]
[BlackTitle "FM"]
[WhiteFideId "1701185"]
[BlackFideId "1700880"]
[WhiteElo "2395"]
[BlackElo "2292"]

1. Nf3 {[%emt 03:19:18]} d5 {[%emt 00:00:37]} 2. c4 {[%emt 00:00:16]} d4 {[%emt
00:00:14]} 3. g3 {[%emt 00:01:10]} Nc6 {[%emt 00:00:42]} 4. Bg2 {[%emt
00:00:22]} e5 {[%emt 00:00:59]} 5. d3 {[%emt 00:00:06]} Bb4+ {[%emt 00:03:19]}
6. Bd2 {[%emt 00:02:14]} a5 {[%emt 00:01:34]} 7. O-O {[%emt 00:02:00]} Bxd2
{[%emt 00:02:57]} 8. Nbxd2 {[%emt 00:06:01]} Nf6 {[%emt 00:00:21]} 9. a3 {[%emt
00:00:05]} a4 {[%emt 00:01:36]} 10. b4 {[%emt 00:10:52]} axb3 {[%emt 00:00:10]}
11. Qxb3 {[%emt 00:00:11]} O-O {[%emt 00:00:42]} 12. Rfb1 {[%emt 00:00:24]} Qe7
{[%emt 00:03:50]} 13. Ne1 {[%emt 00:10:05]} Nd7 {[%emt 00:06:06]} 14. a4 {[%emt
00:06:04]} Nc5 {[%emt 00:01:09]} 15. Qc2 {[%emt 00:00:54]} Bd7 {[%emt
00:06:13]} 16. Ne4 {[%emt 00:02:41]} Ra7 {[%emt 00:19:18]} 17. Nxc5 {[%emt
00:09:36]} Qxc5 {[%emt 00:00:09]} 18. Rb5 {[%emt 00:00:19]} Qe7 {[%emt
00:00:30]} 19. Qb1 {[%emt 00:00:10]} Nd8 {[%emt 00:03:51]} 20. Qb4 {[%emt
00:16:21]} Qxb4 {[%emt 00:13:00]} 21. Rxb4 {[%emt 00:00:03]} b6 {[%emt
00:00:32]} 22. Nf3 {[%emt 00:06:28]} f6 {[%emt 00:03:23]} 23. Nd2 {[%emt
00:00:06]} Ne6 {[%emt 00:07:59]} 24. Bd5 {[%emt 00:01:51]} Kf7 {[%emt
00:00:37]} 25. Nb3 {[%emt 00:01:42]} Ke7 {[%emt 00:04:59]} 26. a5 {[%emt
00:08:44]} bxa5 {[%emt 00:05:03]} 27. Rxa5 {[%emt 00:03:31]} Rxa5 {[%emt
00:00:22]} 28. Nxa5 {[%emt 00:00:02]} Nc5 {[%emt 00:01:41]} 29. Nb3 {[%emt
00:00:36]} Nxb3 30. Rxb3 Kd6 {[%emt 00:00:52]} 31. Bf3 {[%emt 00:01:59]} Bc6
{[%emt 00:04:41]} 32. Kg2 {[%emt 00:00:06]} Re8 {[%emt 00:01:34]} 33. Bxc6
{[%emt 00:00:04]} Kxc6 {[%emt 00:00:08]} 34. Rb5 {[%emt 00:01:24]} Kd6 {[%emt
00:00:41]} 35. Rd5+ {[%emt 00:00:20]} Ke6 {[%emt 00:00:24]} 36. Rc5 {[%emt
00:02:44]} Kd6 {[%emt 00:00:18]} 37. Rd5+ {[%emt 00:00:01]} Ke6 {[%emt
00:00:18]} 38. f4 {[%emt 00:00:13]} c6 {[%emt 00:01:26]} 39. Ra5 {[%emt
00:00:05]} exf4 {[%emt 00:00:46]} 40. gxf4 {[%emt 00:00:10]} Kd6 {[%emt
00:00:44]} 41. Kf2 {[%emt 00:00:11]} h6 {[%emt 00:03:21]} 42. Ra7 {[%emt
00:01:16]} Re7 {[%emt 00:01:17]} 43. c5+ {[%emt 00:00:32]} Ke6 {[%emt
00:00:09]} 44. f5+ {[%emt 00:00:10]} Kf7 {[%emt 00:00:14]} 45. Rxe7+ {[%emt
00:00:30]} Kxe7 {[%emt 00:00:05]} 46. Kf3 {[%emt 00:00:09]} Kf7 {[%emt
00:02:03]} 47. Ke4 {[%emt 00:00:39]} g6 {[%emt 00:00:52]} 48. Kxd4 {[%emt
00:05:49]} gxf5 {[%emt 00:01:11]} 49. Ke3 {[%emt 00:00:02]} Ke6 {[%emt
00:02:04]} 50. Kf4 {[%emt 00:00:11]} Kd5 {[%emt 00:00:13]} 51. Kxf5 {[%emt
00:00:18]} Kxc5 {[%emt 00:00:20]} 52. Kxf6 {[%emt 00:00:20]} Kd4 {[%emt
00:00:15]} 53. e4 {[%emt 00:00:12]} 1-0

[Event "LASK Schackstudion IM Tournament"]
[Site "Lund, Sweden"]
[Date "2022.08.15"]
[Round "1.5"]
[White "Kristensen, Kaare Hove"]
[Black "Rozentalis, Eduardas"]
[Result "1/2-1/2"]
[TimeControl "90 minutes + 30 sec increment starting from move 1."]
[WhiteTitle "IM"]
[BlackTitle "GM"]
[WhiteFideId "1400940"]
[BlackFideId "12800023"]
[WhiteElo "2274"]
[BlackElo "2493"]

1. c4 {[%clk 01:30:51]} {[%emt 00:00:07]} e6 {[%clk 01:30:45]} {[%emt
00:00:16]} 2. Nc3 {[%clk 01:31:08]} {[%emt 00:00:11]} b6 {[%clk 01:30:44]}
{[%emt 00:00:32]} 3. d4 {[%clk 01:27:56]} {[%emt 00:03:42]} Bb4 {[%clk
01:29:58]} {[%emt 00:01:16]} 4. e4 {[%clk 01:22:37]} {[%emt 00:05:48]} Bb7
{[%clk 01:29:27]} {[%emt 00:01:02]} 5. Bd3 {[%clk 01:18:39]} {[%emt 00:04:27]}
f5 {[%clk 01:24:24]} {[%emt 00:05:33]} 6. Qh5+ {[%clk 01:15:12]} {[%emt
00:03:56]} g6 {[%clk 01:24:28]} {[%emt 00:00:27]} 7. Qe2 {[%clk 01:15:35]}
{[%emt 00:00:08]} Nf6 {[%clk 01:20:59]} {[%emt 00:03:59]} 8. Bg5 {[%clk
01:15:35]} {[%emt 00:00:29]} h6 {[%clk 01:13:45]} {[%emt 00:07:44]} 9. Bxf6
{[%clk 01:15:49]} {[%emt 00:00:16]} Qxf6 {[%clk 01:14:11]} {[%emt 00:00:04]} 10.
Nf3 {[%clk 01:14:50]} {[%emt 00:01:28]} Nc6 {[%clk 01:13:33]} {[%emt 00:01:08]}
11. O-O {[%clk 01:08:41]} {[%emt 00:06:39]} Bxc3 {[%clk 01:09:40]} {[%emt
00:04:23]} 12. bxc3 {[%clk 01:09:01]} {[%emt 00:00:10]} O-O {[%clk 01:10:05]}
{[%emt 00:00:05]} 13. Rfe1 {[%clk 01:00:06]} {[%emt 00:09:25]} Rf7 {[%clk
00:56:47]} {[%emt 00:13:47]} 14. d5 {[%clk 00:50:58]} {[%emt 00:09:38]} Ne5
{[%clk 00:53:32]} {[%emt 00:03:46]} 15. exf5 {[%clk 00:41:43]} {[%emt
00:09:44]} Nxf3+ {[%clk 00:45:54]} {[%emt 00:08:08]} 16. Qxf3 {[%clk 00:41:00]}
{[%emt 00:01:14]} exf5 {[%clk 00:46:20]} {[%emt 00:00:05]} 17. Qf4 {[%clk
00:35:21]} {[%emt 00:06:08]} g5 {[%clk 00:42:26]} {[%emt 00:04:24]} 18. Qd4
{[%clk 00:35:00]} {[%emt 00:00:50]} Raf8 {[%clk 00:31:15]} {[%emt 00:11:42]} 19.
Re5 {[%clk 00:26:52]} {[%emt 00:08:38]} d6 {[%clk 00:31:08]} {[%emt 00:00:36]}
20. Re6 {[%clk 00:26:48]} {[%emt 00:00:34]} Qxd4 {[%clk 00:31:24]} {[%emt
00:00:14]} 21. cxd4 {[%clk 00:27:03]} {[%emt 00:00:15]} Kg7 {[%clk 00:31:35]}
{[%emt 00:00:18]} 22. f4 {[%clk 00:19:50]} {[%emt 00:07:43]} Bc8 {[%clk
00:25:26]} {[%emt 00:06:37]} 1/2-1/2

[Event "LASK Schackstudion IM Tournament"]
[Site "Lund, Sweden"]
[Date "2022.08.16"]
[Round "2.1"]
[White "Storme, Isak"]
[Black "Kucuksari, Kaan"]
[Result "1-0"]
[TimeControl "90 minutes + 30 sec increment starting from move 1."]
[WhiteTitle "FM"]
[BlackTitle "FM"]
[WhiteFideId "1728113"]
[BlackFideId "6380166"]
[WhiteElo "2416"]
[BlackElo "2398"]

1. d4 {[%clk 01:29:57]} {[%emt 00:00:51]} Nf6 {[%clk 01:30:54]} {[%emt
00:00:18]} 2. Nf3 {[%clk 01:30:19]} {[%emt 00:00:07]} g6 {[%clk 01:31:19]}
{[%emt 00:00:06]} 3. g3 {[%clk 01:30:38]} {[%emt 00:00:10]} Bg7 {[%clk
01:31:43]} {[%emt 00:00:06]} 4. Bg2 {[%clk 01:30:58]} {[%emt 00:00:09]} O-O
{[%clk 01:32:08]} {[%emt 00:00:07]} 5. O-O {[%clk 01:31:11]} {[%emt 00:00:16]}
d6 {[%clk 01:32:35]} {[%emt 00:00:03]} 6. b3 {[%clk 01:30:36]} {[%emt
00:01:05]} e5 {[%clk 01:32:59]} {[%emt 00:00:07]} 7. dxe5 {[%clk 01:30:44]}
{[%emt 00:00:22]} dxe5 {[%clk 01:33:25]} {[%emt 00:00:05]} 8. Ba3 {[%clk
01:28:15]} {[%emt 00:02:58]} e4 {[%clk 01:33:51]} {[%emt 00:00:04]} 9. Bxf8
{[%clk 01:22:51]} {[%emt 00:05:54]} Qxf8 {[%clk 01:34:19]} {[%emt 00:00:03]} 10.
Nd4 {[%clk 01:20:29]} {[%emt 00:02:51]} e3 {[%clk 01:31:57]} {[%emt 00:02:52]}
11. f4 {[%clk 01:16:21]} {[%emt 00:04:37]} Nc6 {[%clk 01:25:18]} {[%emt
00:07:10]} 12. Nxc6 {[%clk 01:15:46]} {[%emt 00:01:05]} bxc6 {[%clk 01:25:42]}
{[%emt 00:00:07]} 13. Nc3 {[%clk 01:15:30]} {[%emt 00:00:45]} Bf5 {[%clk
01:19:55]} {[%emt 00:06:16]} 14. Qe1 {[%clk 01:13:24]} {[%emt 00:02:36]} Re8
{[%clk 00:56:55]} {[%emt 00:23:30]} 15. Bxc6 {[%clk 01:04:41]} {[%emt
00:09:14]} Rd8 {[%clk 00:48:46]} {[%emt 00:08:39]} 16. Rd1 {[%clk 00:47:53]}
{[%emt 00:17:17]} Rd2 {[%clk 00:45:46]} {[%emt 00:03:30]} 17. Bf3 {[%clk
00:45:49]} {[%emt 00:02:33]} Qc5 {[%clk 00:23:06]} {[%emt 00:23:11]} 18. Nb1
{[%clk 00:35:01]} {[%emt 00:11:16]} Rxc2 {[%clk 00:09:38]} {[%emt 00:13:59]} 19.
b4 {[%clk 00:27:40]} {[%emt 00:07:51]} Qe7 {[%clk 00:08:11]} {[%emt 00:01:58]}
20. Rc1 {[%clk 00:22:38]} {[%emt 00:05:32]} Rxa2 {[%clk 00:06:26]} {[%emt
00:02:15]} 21. Qc3 {[%clk 00:22:01]} {[%emt 00:01:06]} Nd5 {[%clk 00:03:37]}
{[%emt 00:03:20]} 22. Qc5 {[%clk 00:15:02]} {[%emt 00:07:29]} Qxc5 {[%clk
00:03:57]} {[%emt 00:00:10]} 23. bxc5 {[%clk 00:15:24]} {[%emt 00:00:07]} Nb4
{[%clk 00:03:30]} {[%emt 00:00:57]} 24. Nc3 {[%clk 00:15:12]} {[%emt 00:00:42]}
Rd2 {[%clk 00:01:32]} {[%emt 00:02:29]} 25. Nb5 {[%clk 00:14:18]} {[%emt
00:01:23]} a5 {[%clk 00:00:37]} {[%emt 00:01:26]} 26. Nxc7 {[%clk 00:14:14]}
{[%emt 00:00:33]} Na2 {[%clk 00:00:40]} {[%emt 00:00:28]} 27. Rc4 {[%clk
00:13:11]} {[%emt 00:01:32]} Nc3 {[%clk 00:00:49]} {[%emt 00:00:21]} 28. g4
{[%clk 00:12:41]} {[%emt 00:01:00]} Bc8 {[%clk 00:01:01]} {[%emt 00:00:18]} 29.
c6 {[%clk 00:11:13]} {[%emt 00:01:57]} a4 {[%clk 00:00:41]} {[%emt 00:00:51]}
30. Rb4 {[%clk 00:09:56]} {[%emt 00:01:46]} a3 {[%clk 00:00:44]} {[%emt
00:00:28]} 31. Rb8 {[%clk 00:09:30]} {[%emt 00:00:55]} Rd8 {[%clk 00:01:13]}
{[%emt 00:00:01]} 32. Nd5 {[%clk 00:08:27]} {[%emt 00:01:32]} Nxd5 {[%emt
00:01:06]} 33. Bxd5 {[%clk 00:08:37]} {[%emt 00:00:18]} Rf8 {[%clk 00:00:42]}
{[%emt 00:00:28]} 34. c7 {[%clk 00:08:27]} {[%emt 00:00:39]} Ba6 {[%clk
00:00:38]} {[%emt 00:00:34]} 35. Bb7 {[%clk 00:03:58]} {[%emt 00:04:59]} Bxb7
{[%emt 00:00:38]} 36. Rxb7 {[%clk 00:04:20]} {[%emt 00:00:06]} a2 {[%clk
00:00:43]} {[%emt 00:00:19]} 37. Rb8 {[%clk 00:04:42]} {[%emt 00:00:08]} 1-0